bitfinex-derivatives/quotes_ETHF0:USTF0_20250704
["timestamp","ask_amount","ask_price","bid_price","bid_amount"]
[1751663119162,2.59109671,2492.4,2492.3,0.80227]
[1751663122368,2.59109671,2492.4,2492.3,4.01007]
[1751663124668,1.78884671,2492.4,2492.3,4.01007]
[1751663124869,2.59108671,2492.4,2492.3,0.80227]
[1751663126268,2.59108671,2492.4,2492.3,4.01007]
[1751663130970,2.59108671,2492.4,2492.3,0.80227]
[1751663131166,0.80227,2492.3,2492.2,0.80229]
[1751663131364,1.91231671,2492.3,2492.2,0.80229]
[1751663133875,1.91231671,2492.3,2492.2,4.01009]
[1751663135876,1.91231671,2492.3,2492.2,0.80229]
[1751663136076,1.91231671,2492.3,2492.2,4.01009]
[1751663137876,1.91231671,2492.3,2492.2,0.80229]
[1751663138072,1.91231671,2492.3,2492.2,4.01009]
[1751663139573,1.11004671,2492.3,2492.2,4.01009]
[1751663155786,1.11004671,2492.3,2492.2,0.80229]
[1751663156087,1.11004671,2492.3,2492.2,4.01009]
[1751663165598,1.11004671,2492.3,2492.2,0.80229]
[1751663165794,1.11004671,2492.3,2492.2,4.01009]
[1751663169094,1.11004671,2492.3,2492.2,0.80229]
[1751663169397,1.11004671,2492.3,2492.2,4.01009]
[1751663173102,1.11004671,2492.3,2492.2,0.80229]
[1751663173291,1.11004671,2492.3,2492.2,4.01009]
[1751663175007,0.6788,2492.4,2492.3,0.80227]
[1751663175198,0.6788,2492.4,2492.3,4.01007]
[1751663175400,1.80426203,2492.4,2492.3,4.01007]
[1751663183017,1.80426203,2492.4,2492.3,0.80227]
[1751663199930,1.80426203,2492.4,2492.3,2.19467]
[1751663200132,0.6488,2492.6,2492.5,0.80221]
[1751663200333,1.76472024,2492.6,2492.5,0.80221]
[1751663207233,0.6488,2492.6,2492.5,0.80221]
[1751663207841,0.6663,2492.7,2492.6,0.80218]
[1751663208035,0.6764,2492.9,2492.8,0.80211]
[1751663208242,1.79059782,2492.9,2492.8,0.80211]
[1751663212549,0.7054,2493.1,2492.8,0.80211]
[1751663212550,0.7054,2493.1,2493.0,0.80206]
[1751663213843,0.6903,2493.5,2493.4,4.00973]
[1751663227860,0.6903,2493.5,2493.4,0.80193]
[1751663228160,0.6903,2493.5,2493.4,4.00973]
[1751663229360,0.6903,2493.5,2493.4,0.80193]
[1751663229562,0.6903,2493.5,2493.4,4.00973]
[1751663230464,0.6903,2493.5,2493.4,0.80193]
[1751663230660,0.6903,2493.5,2493.4,4.00973]
[1751663232864,2.0162,2493.9,2493.4,3.2078]
[1751663233068,2.0162,2493.9,2493.2,1.3171]
[1751663233069,3.2078,2493.5,2492.7,2.0054]
[1751663233269,4.00982,2493.2,2493.0,0.80204]
[1751663233464,0.80208,2493.0,2492.8,0.80211]
[1751663233665,0.80213,2492.8,2492.7,0.80214]
[1751663233868,3.8968,2492.9,2492.8,0.80213]
[1751663233869,6.05561,2492.9,2492.8,0.80213]
[1751663234570,6.05561,2492.9,2492.7,0.80215]
[1751663234868,0.80213,2492.8,2492.7,0.80215]
[1751663235263,2.0457,2492.9,2492.7,0.80215]
[1751663235468,2.84782,2492.9,2492.8,0.80213]
[1751663236872,0.689,2492.9,2492.8,0.80213]
[1751663244375,1.4911,2492.9,2492.8,0.80213]
[1751663244976,0.689,2492.9,2492.8,0.80213]
[1751663246578,1.49112,2492.9,2492.8,0.80213]
[1751663246875,0.689,2492.9,2492.8,0.80213]
[1751663247376,1.49113,2492.9,2492.8,0.80213]
[1751663247676,0.689,2492.9,2492.8,0.80219]
[1751663247877,1.49116,2492.9,2492.8,0.80219]
[1751663248778,0.689,2492.9,2492.8,0.80219]
[1751663249374,1.49116,2492.9,2492.8,0.80219]
[1751663249677,0.689,2492.9,2492.8,0.80219]
[1751663249879,1.49116,2492.9,2492.8,0.80219]
[1751663250980,0.689,2492.9,2492.8,0.80219]
[1751663262383,1.8003689,2492.9,2492.8,0.80219]
[1751663263287,1.1113689,2492.9,2492.8,0.80219]
[1751663263789,0.6935,2493.3,2493.2,0.80206]
[1751663263988,2.48837377,2493.3,2493.2,0.80206]
[1751663271393,1.3768,2493.3,2493.2,0.80206]
[1751663271590,2.17883,2493.3,2493.2,0.80206]
[1751663271791,3.28749902,2493.3,2493.2,0.80206]
[1751663271986,1.3768,2493.3,2493.2,0.80206]
[1751663272193,2.17883,2493.3,2493.2,0.80206]
[1751663272695,1.3768,2493.3,2493.2,0.80206]
[1751663272896,2.17883,2493.3,2493.2,0.80206]
[1751663273098,3.28696475,2493.3,2493.2,0.80206]
[1751663273291,2.17883,2493.3,2493.2,0.80206]
[1751663273491,1.3768,2493.3,2493.2,0.80206]
[1751663273891,2.17883,2493.3,2493.2,0.80206]
[1751663274097,1.3768,2493.3,2493.2,0.80206]
[1751663280904,2.17883,2493.3,2493.2,0.80206]
[1751663281503,1.3768,2493.3,2493.2,0.80206]
[1751663282304,2.17883,2493.3,2493.2,0.80206]
[1751663283405,1.3768,2493.3,2493.2,0.80206]
[1751663284007,2.17883,2493.3,2493.2,0.80206]
[1751663284200,1.3768,2493.3,2493.2,0.80206]
[1751663284707,2.17883,2493.3,2493.2,0.80206]
[1751663286008,1.3768,2493.3,2493.2,0.80206]
[1751663286208,2.48527772,2493.3,2493.2,0.80206]
[1751663286405,3.28730772,2493.3,2493.2,0.80206]
[1751663286605,3.28737844,2493.3,2493.2,0.80206]
[1751663288910,3.28737844,2493.3,2492.9,3.99669]
[1751663288911,0.80208,2493.2,2492.9,1.9913]
[1751663289210,2.17885,2493.3,2493.2,0.80207]
[1751663289409,2.48930511,2493.3,2493.2,0.80207]
[1751663290512,3.29133511,2493.3,2493.2,0.80207]
[1751663293920,2.48930511,2493.3,2493.2,0.80207]
[1751663294521,3.29133511,2493.3,2493.2,0.80207]
[1751663294720,2.48930511,2493.3,2493.2,0.80207]
[1751663296422,3.29133511,2493.3,2493.2,0.80207]
[1751663300424,0.80216,2492.9,2492.8,0.80218]
[1751663300627,2.00517,2493.2,2492.9,0.80214]
[1751663300628,0.80214,2493.0,2492.9,0.80214]
[1751663300827,1.91649969,2493.0,2492.9,0.80214]
[1751663301028,2.63439969,2493.0,2492.9,0.80214]
[1751663303931,0.80217,2492.9,2492.8,0.80217]
[1751663304132,1.83225969,2493.0,2492.9,0.80216]
[1751663304133,1.52004,2493.0,2492.9,0.80216]
[1751663304332,2.63032733,2493.0,2492.9,0.80216]
[1751663304633,1.82818733,2493.0,2492.9,0.80216]
[1751663304835,2.63031733,2493.0,2492.9,0.80216]
[1751663307337,1.52003,2493.0,2492.9,0.80216]
[1751663307632,2.63003347,2493.0,2492.9,0.80216]
[1751663308636,0.80218,2492.9,2492.8,0.80218]
[1751663309036,1.51788,2492.9,2492.8,0.80218]
[1751663309842,2.72113,2492.9,2492.1,9.87840621]
[1751663310141,3.2078,2492.7,2492.6,0.80226]
[1751663310334,4.31830775,2492.7,2492.6,0.80226]
[1751663310535,5.00210775,2492.7,2492.2,2.55745]
[1751663310737,0.80227,2492.6,2492.5,0.80226]
[1751663313442,4.69385,2492.7,2492.6,0.80226]
[1751663314741,0.80226,2492.6,2492.5,0.80227]
[1751663315444,4.69385,2492.7,2492.5,0.80227]
[1751663315647,0.80226,2492.6,2492.5,0.80227]
[1751663319951,4.01006,2492.6,2492.5,0.80227]
[1751663320851,0.80226,2492.6,2492.5,0.80227]
[1751663321051,4.01006,2492.6,2492.5,0.80227]
[1751663323053,0.80231,2492.5,2492.4,0.8023]
[1751663323853,4.01008,2492.6,2492.5,0.80229]
[1751663324552,3.2078,2492.6,2492.5,0.80229]
[1751663325356,3.9235,2492.9,2492.8,0.80219]
[1751663325553,5.83111181,2492.9,2492.8,0.80219]
[1751663325850,5.71335181,2492.9,2492.8,0.80219]
[1751663328255,6.51551181,2492.9,2492.8,0.80219]
[1751663328753,5.71335181,2492.9,2492.8,0.80219]
[1751663333754,6.51551181,2492.9,2492.8,0.80219]
[1751663333957,5.71335181,2492.9,2492.8,0.80219]
[1751663335759,2.50555181,2492.9,2492.8,0.80219]
[1751663335956,3.30771181,2492.9,2492.8,0.80219]
[1751663336355,0.80222,2492.8,2492.7,0.80221]
[1751663336655,1.90767181,2492.8,2492.7,0.80221]
[1751663340658,0.80225,2492.7,2492.6,0.80224]
[1751663340853,5.11550181,2492.7,2492.6,0.80224]
[1751663343662,4.31325181,2492.7,2492.6,0.80224]
[1751663344663,5.11548181,2492.7,2492.6,0.80224]
[1751663345561,4.31325181,2492.7,2492.6,0.80224]
[1751663346863,4.3123034,2492.7,2492.6,0.80224]
[1751663348463,4.31397974,2492.7,2492.5,0.80227]
[1751663348764,1.80537974,2492.6,2492.5,0.80227]
[1751663350065,2.60763974,2492.6,2492.5,0.80227]
[1751663351463,1.80537974,2492.6,2492.5,0.80227]
[1751663353559,1.80537974,2492.6,2492.0,2.00614]
[1751663353766,4.01013,2492.4,2492.3,0.80233]
[1751663353962,5.11687491,2492.4,2492.3,0.80233]
[1751663354662,4.31454491,2492.4,2492.3,0.80233]
[1751663355763,1.10674491,2492.4,2492.3,0.80233]
[1751663356468,1.10674491,2492.4,2492.3,2.12413]
[1751663356667,0.6992,2492.6,2492.5,0.80229]
[1751663356869,1.80520219,2492.6,2492.5,0.80229]
[1751663357168,2.60746219,2492.6,2492.5,0.80229]
[1751663357367,2.60747219,2492.6,2492.5,0.80229]
[1751663358970,0.8023,2492.5,2492.4,0.8023]
[1751663359268,1.90830219,2492.5,2492.4,0.8023]
[1751663359469,1.10600219,2492.5,2492.4,0.8023]
[1751663359969,1.90829219,2492.5,2492.4,0.8023]
[1751663361171,1.10600219,2492.5,2492.4,0.8023]
[1751663362171,1.90829219,2492.5,2492.4,0.8023]
[1751663362372,0.80238,2492.3,2492.2,0.80238]
[1751663362671,5.11639874,2492.3,2492.2,0.80239]
[1751663363071,5.78519874,2492.3,2492.2,0.80239]
[1751663365476,0.8024,2492.2,2492.1,0.80241]
[1751663365876,4.67897,2492.3,2492.2,0.80239]
[1751663366076,5.78493119,2492.3,2492.2,0.80239]
[1751663366775,5.78493119,2492.3,2491.9,1.2964]
[1751663366776,0.8024,2492.2,2492.1,0.8024]
[1751663367073,4.67898,2492.3,2492.2,0.80239]
[1751663367274,5.78479446,2492.3,2492.2,0.80239]
[1751663370376,4.98241446,2492.3,2491.9,1.2964]
[1751663370580,0.8025,2491.9,2491.8,0.80249]
[1751663370779,4.01029,2492.0,2491.9,0.80248]
[1751663370978,5.11663724,2492.0,2491.9,0.80248]
[1751663371974,4.31417724,2492.0,2491.9,0.80248]
[1751663372484,4.99687724,2492.0,2491.9,0.80248]
[1751663373177,3.8905,2492.0,2491.9,0.80248]
[1751663382684,0.6827,2492.0,2491.9,0.80248]
[1751663382888,2.60466736,2492.0,2491.9,0.80248]
[1751663383089,3.28114736,2492.0,2491.9,0.80248]
[1751663384186,6.48894736,2492.0,2491.9,0.80248]
[1751663385184,6.48894736,2492.0,2491.8,0.80249]
[1751663385185,0.8025,2491.9,2491.8,0.80249]
[1751663385388,1.92199736,2491.9,2491.8,0.80249]
[1751663385585,1.11949736,2491.9,2491.8,0.80249]
[1751663386287,1.92197736,2491.9,2491.8,0.80249]
[1751663389489,1.11949736,2491.9,2491.8,0.80249]
[1751663396398,1.92197736,2491.9,2491.8,0.80249]
[1751663397799,1.11949736,2491.9,2491.8,0.80249]
[1751663398802,1.92197736,2491.9,2491.8,0.80249]
[1751663415311,5.12977736,2491.9,2491.8,0.80249]
[1751663420607,1.92197736,2491.9,2491.8,0.80249]
[1751663420813,5.12977736,2491.9,2491.8,0.80249]
[1751663421213,1.92197736,2491.9,2491.8,0.80249]
[1751663421511,5.12977736,2491.9,2491.8,0.80249]
[1751663428219,4.32729736,2491.9,2491.8,0.80249]
[1751663428620,5.12977736,2491.9,2491.8,0.80249]
[1751663430124,1.92197736,2491.9,2491.8,0.80249]
[1751663430324,5.12977736,2491.9,2491.8,0.80249]
[1751663432625,1.92197736,2491.9,2491.8,0.80249]
[1751663432923,5.12977736,2491.9,2491.8,0.80249]
[1751663433824,4.32729736,2491.9,2491.8,0.80249]
[1751663434025,5.12977736,2491.9,2491.8,0.80249]
[1751663442626,4.32729736,2491.9,2491.8,0.80249]
[1751663442926,5.12977736,2491.9,2491.8,0.80249]
[1751663443627,1.92197736,2491.9,2491.8,0.80249]
[1751663443827,5.12977736,2491.9,2491.8,0.80249]
[1751663444930,1.92197736,2491.9,2491.8,0.80249]
[1751663445124,5.12977736,2491.9,2491.8,0.80249]
[1751663452034,1.92197736,2491.9,2491.8,0.80249]
[1751663452335,5.12977736,2491.9,2491.8,0.80249]
[1751663452935,1.92197736,2491.9,2491.8,0.80249]
[1751663453338,5.12977736,2491.9,2491.8,0.80249]
[1751663458443,4.32729736,2491.9,2491.8,0.80249]
[1751663463745,5.12977736,2491.9,2491.8,0.80249]
[1751663463946,4.32729736,2491.9,2491.8,0.80249]
[1751663464343,4.99009736,2491.9,2491.8,0.80249]
[1751663465047,1.78229736,2491.9,2491.8,0.80249]
[1751663465345,4.99009736,2491.9,2491.8,0.80249]
[1751663465852,5.79257736,2491.9,2491.8,0.80249]
[1751663466952,2.58477736,2491.9,2491.8,0.80249]
[1751663467152,5.79086886,2491.9,2491.8,0.80249]
[1751663473355,2.58306886,2491.9,2491.8,0.80249]
[1751663473956,5.79086886,2491.9,2491.8,0.80249]
[1751663474656,2.58306886,2491.9,2491.8,0.80249]
[1751663474856,5.79086886,2491.9,2491.8,0.80249]
[1751663475658,2.58306886,2491.9,2491.8,0.80249]
[1751663475955,5.79086886,2491.9,2491.8,0.80249]
[1751663476658,2.58306886,2491.9,2491.8,0.80249]
[1751663476858,5.79086886,2491.9,2491.8,0.80249]
[1751663477960,4.98838886,2491.9,2491.8,0.80249]
[1751663479660,1.78058886,2491.9,2491.8,0.80249]
[1751663479861,4.98838886,2491.9,2491.8,0.80249]
[1751663482664,1.78058886,2491.9,2491.8,0.80249]
[1751663482962,4.98838886,2491.9,2491.8,0.80249]
[1751663483766,1.78058886,2491.9,2491.8,0.80249]
[1751663484064,4.98838886,2491.9,2491.8,0.80249]
[1751663491672,1.78058886,2491.9,2491.8,0.80249]
[1751663498577,1.78058886,2491.9,2491.8,0.80252]
[1751663507577,2.58306886,2491.9,2491.8,0.80252]
[1751663507776,1.78058886,2491.9,2491.8,0.80252]
[1751663511676,2.58306886,2491.9,2491.8,0.80252]
[1751663511982,1.78058886,2491.9,2491.8,0.80252]
[1751663518582,2.58306886,2491.9,2491.8,0.80252]
[1751663519078,1.78058886,2491.9,2491.8,0.80252]
[1751663521079,2.58306886,2491.9,2491.8,0.80252]
[1751663522384,1.78058886,2491.9,2491.8,0.80252]
[1751663527283,0.6628,2491.9,2491.8,0.80252]
[1751663527483,1.76654706,2491.9,2491.8,0.80252]
[1751663585737,1.76654706,2491.9,2491.4,11.222]
[1751663585936,3.2078,2491.7,2491.6,0.80258]
[1751663586136,4.31154706,2491.7,2491.6,0.80258]
[1751663586341,5.67374706,2491.7,2491.6,0.80258]
[1751663587735,2.46594706,2491.7,2491.6,0.80258]
[1751663589142,2.46239002,2491.7,2491.6,0.80258]
[1751663601346,3.2078,2492.1,2492.0,0.80245]
[1751663603051,3.2078,2492.1,2491.7,3.20691025]
[1751663603247,0.6813,2492.0,2491.9,0.80248]
[1751663603450,2.0029,2492.0,2491.9,0.80248]
[1751663604249,2.80535,2492.0,2491.9,0.80248]
[1751663604450,2.0029,2492.0,2491.9,0.80248]
[1751663606353,5.2107,2492.0,2491.9,0.80248]
[1751663609356,6.01315,2492.0,2491.9,0.80248]
[1751663609555,5.2107,2492.0,2491.5,2.00654]
[1751663609756,1.46219,2491.9,2491.8,0.80249]
[1751663610055,0.6597,2491.9,2491.8,0.80249]
[1751663611755,1.46218,2491.9,2491.8,0.80249]
[1751663612855,0.6597,2491.9,2491.8,0.80249]
[1751663613159,1.46218,2491.9,2491.8,0.80249]
[1751663613354,2.57570381,2491.9,2491.8,0.80249]
[1751663613858,1.77322381,2491.9,2491.8,0.80249]
[1751663615160,2.57570381,2491.9,2491.8,0.80249]
[1751663616058,4.98102381,2491.9,2491.8,0.80249]
[1751663616555,5.78350381,2491.9,2491.8,0.80249]
[1751663618663,4.66998,2491.9,2491.8,0.80249]
[1751663618961,5.78154414,2491.9,2491.8,0.80249]
[1751663621361,4.97906414,2491.9,2491.8,0.80249]
[1751663621558,5.78154414,2491.9,2491.8,0.80249]
[1751663621758,4.97906414,2491.9,2491.8,0.80249]
[1751663625158,1.77126414,2491.9,2491.8,0.80249]
[1751663625363,3.2078,2492.2,2491.8,0.80249]
[1751663625364,3.2078,2492.2,2492.1,0.80242]
[1751663625559,5.01732421,2492.2,2492.1,0.80242]
[1751663626158,4.31962421,2492.2,2492.1,0.80242]
[1751663626364,1.11182421,2492.2,2492.1,12.02142]
[1751663626560,3.2078,2492.5,2492.4,0.80232]
[1751663626759,4.31976284,2492.5,2492.4,0.80232]
[1751663627462,3.2078,2492.5,2492.4,0.80232]
[1751663628859,0.6977,2492.8,2492.7,0.80222]
[1751663629067,1.80786334,2492.8,2492.7,0.80222]
[1751663629266,5.01566334,2492.8,2492.7,0.80222]
[1751663630769,5.01492653,2492.8,2492.7,0.80222]
[1751663632368,5.81711653,2492.8,2492.7,0.80222]
[1751663632571,5.01492653,2492.8,2492.7,0.80222]
[1751663633072,5.81711653,2492.8,2492.7,0.80222]
[1751663635270,4.70769,2492.8,2492.7,0.80222]
[1751663637684,1.49989,2492.8,2492.7,0.80222]
[1751663637978,4.70769,2492.8,2492.7,0.80222]
[1751663638479,0.80224,2492.7,2492.4,1.4348]
[1751663638678,0.669,2492.6,2492.1,3.2078]
[1751663638983,3.2078,2492.2,2492.1,0.80242]
[1751663639280,4.01019,2492.2,2492.1,0.80242]
[1751663639475,4.68359,2492.2,2492.1,0.80242]
[1751663639774,0.80244,2492.1,2492.0,0.80243]
[1751663639973,1.49264,2492.1,2492.0,0.80243]
[1751663640179,0.6902,2492.1,2491.7,12.5436]
[1751663640376,0.80247,2492.0,2491.9,0.80247]
[1751663641479,1.49264,2492.1,2492.0,0.80245]
[1751663641884,0.80245,2492.0,2491.9,0.80246]
[1751663642683,0.6902,2492.1,2491.7,1.3276]
[1751663642879,0.80247,2492.0,2491.9,0.80247]
[1751663643084,0.80249,2491.9,2491.8,0.80249]
[1751663644188,0.80252,2491.8,2491.7,0.80253]
[1751663644382,3.2078,2492.0,2491.5,1.4029]
[1751663644584,0.80249,2491.9,2491.8,0.8025]
[1751663645283,3.2078,2492.0,2491.7,0.80253]
[1751663645477,3.2078,2492.0,2491.3,1.3448]
[1751663645478,1.10715917,2491.9,2491.3,1.3448]
[1751663645678,0.80256,2491.7,2491.6,0.80257]
[1751663646088,1.50866,2491.7,2491.6,0.80257]
[1751663647491,0.80262,2491.5,2491.4,0.80262]
[1751663647693,1.4894,2491.6,2491.5,0.80261]
[1751663649392,0.80263,2491.5,2491.4,0.80263]
[1751663650688,0.6868,2491.6,2491.1,3.2078]
[1751663650893,0.80269,2491.3,2491.2,0.80269]
[1751663651294,1.49019,2491.3,2491.2,0.80269]
[1751663651498,0.80272,2491.2,2491.1,0.80272]
[1751663651698,0.6875,2491.3,2491.2,0.80271]
[1751663654592,1.49018,2491.3,2491.2,0.80271]
[1751663654992,0.6875,2491.3,2491.2,0.80271]
[1751663655393,1.49018,2491.3,2491.2,0.80271]
[1751663657900,0.80273,2491.2,2491.1,0.80273]
[1751663658296,1.49019,2491.3,2491.2,0.80271]
[1751663659700,1.49018,2491.3,2491.2,0.80271]
[1751663660498,0.80271,2491.2,2491.1,0.80272]
[1751663660899,1.49019,2491.3,2491.2,0.80271]
[1751663664006,0.6875,2491.3,2491.2,0.80271]
[1751663664305,1.49018,2491.3,2491.2,0.80271]
[1751663665405,0.80273,2491.2,2491.1,0.80271]
[1751663665707,0.80278,2491.0,2490.9,0.80278]
[1751663666401,1.49816,2491.1,2491.0,0.80277]
[1751663667705,4.70596,2491.1,2491.0,0.80277]
[1751663668108,0.8028,2491.0,2490.9,0.80279]
[1751663668507,0.6751,2491.0,2490.9,0.80279]
[1751663669509,1.47787,2491.0,2490.9,0.80279]
[1751663670210,0.6751,2491.0,2490.9,0.80279]
[1751663670509,1.47787,2491.0,2490.9,0.80279]
[1751663671209,0.6751,2491.0,2490.9,0.80279]
[1751663676411,1.47787,2491.0,2490.9,0.80279]
[1751663678102,2.59634734,2491.0,2490.9,0.80279]
[1751663679808,1.79357734,2491.0,2490.9,0.80279]
[1751663680310,2.59634734,2491.0,2490.9,0.80279]
[1751663680511,0.80282,2490.9,2490.8,0.80281]
[1751663682417,1.4779,2491.0,2490.9,0.8028]
[1751663682618,2.59711384,2491.0,2490.9,0.8028]
[1751663683218,2.59711384,2491.0,2490.7,1.3914]
[1751663683219,0.80282,2490.9,2490.8,0.80282]
[1751663684120,1.4779,2491.0,2490.9,0.8028]
[1751663684416,2.59700937,2491.0,2490.9,0.8028]
[1751663690322,0.80282,2490.9,2490.8,0.8028]
[1751663690520,1.92192937,2490.9,2490.8,0.8028]
[1751663691523,1.11910937,2490.9,2490.8,0.8028]
[1751663692723,1.92190937,2490.9,2490.8,0.8028]
[1751663693527,0.80284,2490.8,2490.7,0.80285]
[1751663694728,0.6751,2491.0,2490.4,3.36618]
[1751663694729,0.80283,2490.9,2490.8,0.80282]
[1751663694922,1.92229149,2490.9,2490.8,0.80282]
[1751663695322,0.80286,2490.8,2490.7,0.80284]
[1751663695621,0.80284,2490.9,2490.8,0.80283]
[1751663695821,1.92240886,2490.9,2490.8,0.80283]
[1751663698329,5.13020886,2490.9,2490.8,0.80283]
[1751663699228,0.80285,2490.8,2490.7,0.80284]
[1751663699823,4.01063,2490.9,2490.8,0.80284]
[1751663700024,5.13030205,2490.9,2490.8,0.80284]
[1751663700424,1.11967205,2490.9,2490.5,1.3588]
[1751663700622,0.6751,2491.0,2490.5,1.3588]
[1751663700826,0.80289,2490.7,2490.6,0.80288]
[1751663701518,0.80287,2490.7,2490.6,0.80288]
[1751663701828,1.92239147,2490.7,2490.6,0.80288]
[1751663702027,2.61029147,2490.7,2490.6,0.80288]
[1751663702729,1.80742147,2490.7,2490.6,0.80288]
[1751663704629,2.61029147,2490.7,2490.6,0.80288]
[1751663704930,1.80742147,2490.7,2490.6,0.80288]
[1751663706331,0.6879,2490.7,2490.6,0.80288]
[1751663706530,1.80706147,2490.7,2490.6,0.80288]
[1751663707126,1.80706307,2490.7,2490.6,0.80288]
[1751663707330,0.6879,2490.7,2490.6,0.80288]
[1751663707930,3.2078,2490.9,2490.8,0.80283]
[1751663708125,4.32705671,2490.9,2490.8,0.80283]
[1751663708431,5.12985671,2490.9,2490.6,1.9205]
[1751663708634,1.92209671,2490.8,2490.7,0.80285]
[1751663709938,0.80289,2490.7,2490.6,0.80289]
[1751663710138,2.57758664,2490.7,2490.6,0.80289]
[1751663710641,1.77469664,2490.7,2490.6,0.80289]
[1751663712538,0.6552,2490.7,2490.6,0.80289]
[1751663713939,4.01063,2490.9,2490.8,0.80283]
[1751663714142,5.13024724,2490.9,2490.8,0.80283]
[1751663715844,4.32744724,2490.9,2490.8,0.80283]
[1751663716144,5.13024724,2490.9,2490.8,0.80283]
[1751663716344,0.80285,2490.8,2490.7,0.80285]
[1751663716540,1.92249724,2490.8,2490.7,0.80285]
[1751663718342,0.80288,2490.7,2490.6,0.80288]
[1751663718544,1.82994724,2490.7,2490.6,0.80288]
[1751663721947,2.63281724,2490.7,2490.6,0.80288]
[1751663722147,1.82994724,2490.7,2490.6,0.8029]
[1751663723351,2.63283724,2490.7,2490.6,0.8029]
[1751663724148,38.87783724,2490.7,2490.6,0.8029]
[1751663724547,38.07494724,2490.7,2490.6,0.8029]
[1751663725652,38.74334724,2490.7,2490.6,0.8029]
[1751663725952,38.74134724,2490.7,2490.6,0.8029]
[1751663727450,39.54421724,2490.7,2490.6,0.8029]
[1751663727946,0.80291,2490.6,2490.5,0.80291]
[1751663728154,1.92319071,2490.6,2490.5,0.80291]
[1751663728851,1.12028071,2490.6,2490.2,1.9817]
[1751663729051,1.12028071,2490.5,2490.4,0.80296]
[1751663732356,3.2078,2490.8,2490.7,0.80287]
[1751663732357,39.4478,2490.8,2490.7,0.80287]
[1751663732657,3.2078,2490.8,2490.7,0.80287]
[1751663732954,4.32778365,2490.8,2490.7,0.80287]
[1751663734757,1.11998365,2490.8,2490.7,0.80287]
[1751663735556,1.11998365,2490.8,2490.7,2.11297]
[1751663741562,0.6775,2491.0,2490.9,0.8028]
[1751663748268,0.6775,2491.0,2490.9,2.2079]
[1751663754471,0.6775,2491.0,2490.5,5.21511]
[1751663754669,0.6775,2491.0,2490.9,0.8028]
[1751663758365,0.7191,2491.2,2491.1,0.80274]
[1751663769183,0.673,2491.3,2491.2,0.80271]
[1751663769481,0.6654,2491.6,2491.5,0.80261]
[1751663770584,0.7005,2491.9,2491.8,0.80251]
[1751663770783,1.3659,2491.9,2491.8,0.80251]
[1751663785102,3.2078,2492.4,2491.8,3.2078]
[1751663785303,0.709,2492.2,2492.1,0.80242]
[1751663786700,3.2078,2492.4,2492.3,0.80235]
[1751663786898,3.2078,2492.7,2492.4,2.00576]
[1751663787105,3.2078,2492.7,2492.6,0.80225]
[1751663788109,0.693,2492.9,2492.8,0.80219]
[1751663789912,0.6961,2493.0,2492.5,6.61385]
[1751663789913,0.6961,2493.0,2492.9,0.80216]
[1751663791006,0.6961,2493.0,2492.5,3.2078]
[1751663791309,3.2078,2492.8,2492.6,0.80223]
[1751663791505,1.9938,2492.7,2492.6,0.80223]
[1751663791904,0.80225,2492.6,2492.2,3.2078]
[1751663792101,0.7112,2492.6,2492.4,0.80229]
[1751663792307,1.3375,2492.5,2492.4,0.80229]
[1751663792504,4.5453,2492.5,2492.3,0.80233]
[1751663792709,4.5453,2492.5,2492.3,0.80232]
[1751663793408,4.5453,2492.5,2492.4,0.80232]
[1751663793610,3.2078,2492.5,2492.4,0.80232]
[1751663795607,1.51346,2492.6,2492.3,0.80234]
[1751663795812,1.51347,2492.6,2492.3,0.80234]
[1751663796012,2.90387,2492.6,2492.3,0.80234]
[1751663796406,3.2078,2492.5,2492.4,0.80232]
[1751663796607,3.2078,2492.5,2491.9,14.4348]
[1751663796812,2.19275,2492.4,2491.9,14.4348]
[1751663797013,1.3904,2492.3,2491.9,14.4348]
[1751663797214,0.6554,2492.2,2492.1,0.80239]
[1751663797512,1.3466,2492.2,2492.1,0.80239]
[1751663806218,3.2078,2492.8,2492.1,2.00604]
[1751663806420,1.78339921,2492.7,2492.6,0.80225]
[1751663806618,1.78339921,2492.7,2492.5,0.80226]
[1751663806917,1.9926,2492.7,2492.6,0.80225]
[1751663807118,3.09582321,2492.7,2492.6,0.80225]
[1751663807917,3.09582321,2492.7,2492.2,3.43384]
[1751663807918,3.89806321,2492.7,2492.1,2.00604]
[1751663808119,1.3946,2492.6,2492.5,0.80227]
[1751663808618,2.19685,2492.6,2492.5,0.80227]
[1751663808820,1.3946,2492.6,2492.5,0.80227]
[1751663809119,3.30042805,2492.6,2492.5,0.80229]
[1751663811318,2.49815805,2492.6,2492.5,0.80229]
[1751663812219,3.30040805,2492.6,2492.5,0.80229]
[1751663813020,6.50820805,2492.6,2492.5,0.80229]
[1751663813421,5.70595805,2492.6,2492.5,0.80229]
[1751663815523,6.50820805,2492.6,2492.5,0.80229]
[1751663817130,3.30040805,2492.6,2492.5,0.80229]
[1751663817426,6.50820805,2492.6,2492.5,0.80229]
[1751663823232,5.70595805,2492.6,2492.0,1.402]
[1751663823431,1.90585805,2492.5,2492.4,0.80229]
[1751663824930,5.11365805,2492.5,2492.4,0.80229]
[1751663827025,4.31135805,2492.5,2492.4,0.80229]
[1751663827533,3.2078,2492.5,2492.4,0.80229]
[1751663827733,4.31795955,2492.5,2492.4,0.80229]
[1751663829730,5.12024955,2492.5,2492.4,0.80229]
[1751663829932,4.31795955,2492.5,2492.4,0.80229]
[1751663830836,5.12024955,2492.5,2492.4,0.80229]
[1751663831535,5.12024955,2492.5,2492.4,0.80232]
[1751663831937,4.31795955,2492.5,2492.4,0.80232]
[1751663836740,5.12024955,2492.5,2492.4,0.80232]
[1751663837238,5.12025955,2492.5,2492.4,0.80232]
[1751663837735,0.80239,2492.2,2492.1,0.8024]
[1751663837931,1.91254955,2492.2,2492.1,0.8024]